Cogmind - Beta 10.2 @@@ ROGUE MODE // 2021.11.21 @ 21:00:29 Player: ptdel Result: Destroyed by G-34 Mercenary with Small Laser Performance ------------- Evolutions (0) 0 Regions Visited (1) 200 Robots Destroyed (9) 45 Value Destroyed (263) 263 Prototype IDs (2) 40 Alien Tech Used (0) 0 Bonus (0) 0 TOTAL SCORE: 548 Bonus ------- None Cogmind --------- Core Integrity 0/250 Matter 240/300 Energy 250/250 System Corruption 0% Temperature Cool (6) Movement Treading (180) Ox1 Location -10/Materials Parts ------- > --- POWER (1) -------- Ion Engine > --- PROPULSION (2) --- Light Treads Light Treads > --- UTILITY (2) ------ Large Storage Unit High-capacity Storage Unit > --- WEAPON (2) ------- Assault Rifle Assault Rifle > --- INVENTORY (18) --- Ion Engine Light Treads Light Treads Light Treads Light Treads Improved Heat Sink Large Storage Unit Terrain Scanner Transport Network Coupler Light Armor Plating Particle Gun Light Assault Rifle Peak State ------------ > --- POWER ------------ Ion Engine > --- PROPULSION ------- Light Treads Light Treads > --- UTILITY ---------- Large Storage Unit High-capacity Storage Unit > --- WEAPON ----------- Assault Rifle Assault Rifle > --- INVENTORY -------- Ion Engine Light Treads Light Treads Light Treads Light Treads Large Storage Unit Terrain Scanner Particle Gun Light Assault Rifle [Rating: 8] Favorites ----------- Power Ion Engine Engine Ion Engine Propulsion Light Treads Treads Light Treads Utility Large Storage Unit Storage Large Storage Unit Weapon Assault Rifle Ballistic Gun Assault Rifle Build | -11 -10 ------- Run | Scr Mat Slots Evolved . | . . Power . | . . Propulsion . | . . Utility . | . . Weapon . | . . Parts Attached 10 | 6 4 Power 2 | 1 1 Engine 2 | 1 1 Core . | . . Reactor . | . . Propulsion 2 | 2 . Treads 2 | 2 . Leg . | . . Wheel . | . . Hover . | . . Flight . | . . Utility 4 | 1 3 Device . | . . Storage 4 | 1 3 Processor . | . . Hackware . | . . Protection . | . . Artifact . | . . Weapon 2 | 2 . Energy Gun . | . . Energy Cannon . | . . Ballistic Gun 2 | 2 . Ballistic Cannon . | . . Launcher . | . . Special Weapon . | . . Impact Weapon . | . . Slashing Weapon . | . . Piercing Weapon . | . . Special Melee Weapon . | . . Unidentified Prototypes . | . . Parts Lost 1 | . 1 Power 1 | . 1 Propulsion . | . . Utility . | . . Weapon . | . . Highest Loss Streak 1 | . 1 Average Slot Usage (%) 99 | . 99 Engine 14 | . 14 Treads 28 | . 28 Storage 27 | . 27 Ballistic Gun 28 | . 28 Naked Turns . | . . Heaviest Build 57 | 11 57 Greatest Support 40 | 40 40 Greatest Overweight (x) 1 | . 1 Average Overweight (x) . | . . Largest Inventory Capacity 18 | 6 18 Average Capacity 16 | 5 17 Most Carried 12 | 4 12 Average Carried 7 | 1 7 Final Capacity 18 | 6 18 Final Carried 12 | 2 12 Class Distribution -------------------- 100% | Mutant Dominant Class ---------------- Mutant | -10/Materials Resources | -11 -10 ----------- Run | Scr Mat Matter Collected 427 | 235 192 Remotely . | . . Salvage Created 399 | . 399 Parts 18 | . 18 Haulers Intercepted 2 | . 2 Recyclers Shooed 1 | . 1 Parts Field Recycled . | . . Retrieved Matter . | . . Parts Self-Destructed . | . . Prevented . | . . Kills | -11 -10 ------- Run | Scr Mat Combat Hostiles Destroyed 6 | . 6 Guns 6 | . 6 Classes Destroyed 3 | . 3 Hauler 2 | . 2 Watcher 1 | . 1 Grunt 6 | . 6 Best Kill Streak 2 | . 2 Combat Bots Only 2 | . 2 Max Kills in Single Turn 1 | . 1 Gunslinging . | . . Exploded . | . . Melee . | . . Uniques/NPCs Destroyed . | . . Combat | -11 -10 -------- Run | Scr Mat Damage Taken 694 | . 694 Core 257 | . 257 Absorbed by Shields . | . . Core Remaining (%) 100 | 100 . Volleys Fired 32 | . 32 Largest 2 | . 2 Hottest 40 | . 40 Shots Fired 64 | . 64 Gun 64 | . 64 Cannon . | . . Launcher . | . . Special . | . . Kinetic 64 | . 64 Thermal . | . . Explosive . | . . Electromagnetic . | . . Robot Hit Streak 13 | . 13 Robot Miss Streak 4 | . 4 Penetration Max . | . . Secondary Targets . | . . Shots Hit Robots 47 | . 47 Core Hits 18 | . 18 Critical Hits 1 | . 1 Critical Kills 1 | . 1 Critical Parts Destroyed . | . . Melee Attacks . | . . Impact . | . . Slashing . | . . Piercing . | . . Sneak Attacks . | . . Combat Hostiles . | . . Follow-up Attacks . | . . Damage Inflicted 542 | . 542 Guns 542 | . 542 Cannons . | . . Explosions . | . . Melee . | . . Ramming . | . . Kinetic 542 | . 542 Thermal . | . . Explosive . | . . Electromagnetic . | . . Impact . | . . Slashing . | . . Piercing . | . . Highest Corruption . | . . Average Corruption . | . . Corruption Purged . | . . Overload Shots . | . . Overflow Damage . | . . Projectiles . | . . Explosions . | . . Melee . | . . Knockbacks . | . . Impact . | . . Kinetic . | . . Secondary . | . . Self-Inflicted Damage . | . . Shots . | . . Rammed . | . . Targets Rammed . | . . Kicked . | . . Crushed . | . . Highest Temperature 6 | . 6 Average Temperature 2 | . 2 Received Heat Transfer 294 | . 294 Siege Activations . | . . Robots Corrupted . | . . Combat Hostiles . | . . Parts Fried . | . . Impact Corruptions . | . . Robots Melted . | . . Combat Hostiles . | . . Parts Melted . | . . Heat Transferred . | . . Parts Sabotaged . | . . Parts Stolen . | . . Parts Stripped . | . . Power Chain Reactions . | . . Missiles Intercepted . | . . Alert | -11 -10 ------- Run | Scr Mat Peak Influence 139 | . 139 Initial . | . . Average 41 | . 43 Maximum Alert Level . | . . Low Security (%) 100 | 100 100 Level 1 . | . . Level 2 . | . . Level 3 . | . . Level 4 . | . . Level 5 . | . . High Security . | . . Max Security . | . . Squads Dispatched 1 | . 1 Investigation 1 | . 1 Extermination . | . . Reinforcement . | . . Assault . | . . Garrison . | . . Intercept . | . . Construction Impeded . | . . Haulers Reinforced . | . . Stealth | -11 -10 --------- Run | Scr Mat Distress Signals 2 | . 2 Communications Jammed . | . . Distress Signals . | . . Times Spotted 16 | . 16 Peak Tracking Total 4 | . 4 Tactical Retreats . | . . Traps | -11 -10 ------- Run | Scr Mat Traps Triggered 2 | . 2 Indirectly . | . . Trap Hack Attempts . | . . Triggered . | . . Disarmed . | . . Reprogrammed . | . . Reused . | . . Traps Extracted . | . . Installed . | . . Triggered . | . . Machines | -11 -10 ---------- Run | Scr Mat Machines Disabled . | . . Max in Single Turn . | . . Machines Sabotaged . | . . Garrisons Compromised . | . . Overloaded Fab Kills . | . . Fab Network Shutdowns . | . . Hacking | -11 -10 --------- Run | Scr Mat Machines Accessed 7 | . 7 Terminals 7 | . 7 Fabricators . | . . Repair Stations . | . . Recycling Units . | . . Scanalyzers . | . . Garrison Access . | . . Total Hacks 20 | . 20 Successful 11 | . 11 Failed 9 | . 9 Catastrophic 1 | . 1 Database Lockouts . | . . Manual . | . . Terminals 20 | . 20 Fabricators . | . . Repair Stations . | . . Recycling Units . | . . Scanalyzers . | . . Garrison Access . | . . Terminal Hacks 11 | . 11 Record 2 | . 2 Robot Analysis 1 | . 1 Prototype ID Bank 1 | . 1 Emergency Access Points 1 | . 1 Unreport Threat 1 | . 1 Locate Traps 1 | . 1 Dispatch Records 1 | . 1 Transport Status 1 | . 1 Investigation Status 1 | . 1 Zone Layout 1 | . 1 Fabricator Hacks . | . . Repair Station Hacks . | . . Recycling Unit Hacks . | . . Scanalyzer . | . . Garrison Access Hacks . | . . Unauthorized Hacks . | . . Terminals . | . . Fabricators . | . . Repair Stations . | . . Recycling Units . | . . Scanalyzers . | . . Garrison Access . | . . Data Cores Recovered . | . . Used . | . . Hacking Detections 6 | . 6 Full Trace Events . | . . Feedback Events . | . . Feedback Blocked . | . . Robot Schematics Acquired . | . . Robots Built . | . . Matter . | . . Time . | . . Total Robot Build Rating . | . . Part Schematics Acquired . | . . Parts Built . | . . Matter . | . . Time . | . . Total Part Build Rating . | . . Parts Repaired . | . . Time . | . . Parts Recycled . | . . Recycled Matter . | . . Retrieved Matter . | . . Retrieved Components . | . . Parts Scanalyzed . | . . Part Schematics Acquired . | . . Parts Damaged . | . . Bothacking | -11 -10 ------------ Run | Scr Mat Used RIF Installer . | . . Robots Hacked . | . . Non-combat . | . . Combat . | . . Robot Hacks Applied . | . . Relay Couplers Released . | . . Robots Rewired . | . . Allies Hacked . | . . Hacks Repelled . | . . Allies | -11 -10 -------- Run | Scr Mat Total Allies . | . . Largest Group . | . . Highest-Rated Group . | . . Highest-Rated Ally . | . . Total Orders . | . . Ally Attacks . | . . Total Damage . | . . Kills . | . . Allies Corrupted . | . . Allies Melted . | . . Intel | -11 -10 ------- Run | Scr Mat Robot Analysis Total 1 | . 1 Derelict Logs Recovered . | . . Drone Launches . | . . Drone Recoveries . | . . Exploration | -11 -10 ------------- Run | Scr Mat Turns Passed 1124 | 70 1054 Spaces Moved 556 | 44 512 Core 12 | 12 . Treads 544 | 32 512 Legs . | . . Wheels . | . . Hover . | . . Flight . | . . Fastest Speed 50 | 50 160 Average Speed 173 | 130 177 Slowest Speed 180 | 160 180 Overloaded Moves . | . . Propulsion Burnouts . | . . Robots Hopped . | . . Cave-ins Triggered . | . . Exploration Rate (%) 39 | 5 73 Regions Visited 1 Branch Regions . Pre-discovered Areas . | . . Known Exits Taken . | . . Unknown Exits Taken 1 | 1 . Scrap Searched . | . . Spaces Dug . | . . Terrain Destroyed . | . . Melee . | . . Projectile . | . . AOE . | . . Terrain Rammed . | . . Walls Destroyed . | . . Machines Disabled . | . . Actions | -11 -10 --------- Run | Scr Mat Total 651 | 57 594 Wait 32 | . 32 Move 555 | 43 512 Hop . | . . Pick Up 21 | 8 13 Fast Attach . | . . Attach 8 | 6 2 Detach . | . . Swap 2 | . 2 Drop 1 | . 1 Fire 32 | . 32 Melee . | . . Ram . | . . Kick . | . . Crush . | . . Escape Stasis . | . . Rewire . | . . Trap . | . . Miscellaneous . | . . Route ------- -11/Scrapyard -10/Materials (discovered 3 exits: [*Mat] / [*Min x2]) History --------- Turn | Location | Event 8 | -11/Scrapyard | Discovered new exit (range 16) 71 | -11/Scrapyard | Entered Materials 280 | -10/Materials | Discovered new exit (range 16) 304 | -10/Materials | Build established: Mutant 750 | -10/Materials | Discovered new exit (range 6) 822 | -10/Materials | Core integrity fell below 50% 940 | -10/Materials | Core integrity fell below 20% 1079 | -10/Materials | Discovered new exit (range 16) 1125 | -10/Materials | Destroyed by G-34 Mercenary with Small Laser Last Messages --------------- 00838_ U-05 Engineer builds a Wall. 00841_ U-05 Engineer builds a Door. 00842_ U-05 Engineer builds a Wall. 00846_ U-05 Engineer lays Concrete. 00863_ U-05 Engineer builds a Wall. 00867_ U-05 Engineer lays Concrete. 00882_ K-01 Serf collects debris. 00882_ U-05 Engineer lays Concrete. 00884_ U-05 Engineer builds a Wall. 00942_ G-47 Trooper destroyed. 00946_ K-01 Serf collects debris. 00954_ G-34 Mercenary destroyed. 00957_ K-01 Serf collects debris. 00961_ Acquired Imp. Heat Sink. 00964_ K-01 Serf collects debris. 01079_ EXIT=FOUND 01098_ Triggered Alarm Trap. 01098_ An alarm sounds. 01098_ ALERT: Alarm triggered, dispatching investigation squad. 01105_ U-05 Engineer lays Concrete. Map ----- +----------------------------------------------------+ | ???????# # ########### #???# %% | | ???????# + + # ????# | | ???????# """ """ # # # ?????# | | ???????# """ """ # # # ?????# /! | | ???????# """ """ # # # ??????# /! | | ???????# # # !! #???????# /! | | ???????########### # !! #???????###### | | ????????#????????# # ! #????????????? | | ????????# ???????# # ! #????????????? | | ????????# ??????# ###########????????????? | | ????????# """ ## #??????????????????????? | | ????????# """"" ## #??????????????????????? | | ????????# """"" ## #??????????????????????? | | ????????# """"" ## k #??????????????????????? | | ????????# """ ?# #??????????????????????? | | ????????? ???# #??????????????????????? | | ????????#+#+###### ##?????????????????????? | | ????????# #?????????????????????? | | ????????+ #?????????????????????? | | ????????# #?????????????????????? | | ????????###+###/###gg #?????????????????????? | | ????????????? # #?????????????????????? | | ??????????? #g #?????????????????????? | | ????????? + #?????????????????????? | | ????????# # #?????????????????????? | | ????????# # @ #?????????????????????? | | ????????# # #?????????????????????? | | ????????# # #?????????????????????? | | ????????# # #?????????????????????? | | ????????########### T?????????????????????? | | ??????????????????# < #?????????????????????? | | ??????????????????# #?????????????????????? | | ??????????????????#####?????????????????????? | | ????????????????????????????????????????????? | | ????????????????????????????????????????????? | | ????????????????????????????????????????????? | | ????????????????????????????????????????????? | | ????????????????????????????????????????????? | | ????????????????????????????????????????????? | | ????????????????????????????????????????????? | | ????????????????????????????????????????????? | | | | | | | | | | | | | | | | | | | +----------------------------------------------------+ Best States ------------- Heat Dissipation 25 Energy Generation 10 Energy Capacity 250 Matter Stores 300 Matter Capacity 300 Sight Range 16 Terrain Scan Density 10 Evasion (%) 50 Recoil Reduction 2 Item Schematics ----------------- None Robot Schematics ------------------ None Fabricated ------------ Nothing Alien Tech Used ----------------- None Achievements -------------- None Challenges ------------ None Game ------ Seed DefenseHardlightNegator Manual? 0 Play Time 00:10:24 Cumulative 72.1 hours Start 2021.11.21 @ 20:53:07 End 2021.11.21 @ 21:00:29 Sessions 1 Manual Loads 0 Difficulty Rogue Special Mode None Game No. 88 Rogue 72 Adventurer 15 Explorer 1 Win Type - Total 0 Types 0/0/0/0/0/0/0/0/0 Lore% 27 Gallery% 44 Achievement% 38 Wizard Run 0 Options --------- ASCII 0 Keyboard 0 Movement Mouse Keybinds 0 Fullscreen 2 Font 18/SmallcapsGlow Map View 76x50 Tactical HUD 1 Map Filters NONE Filters NONE Steam 1 RUN: c259c8cd-51e8-4a94-baae-659b987ddd5a